bitfinex/quotes_BTCUSD_20250617
["timestamp","ask_amount","ask_price","bid_price","bid_amount"]
[1750155240528,1.17401592,106150.0,106140.0,0.0035789]
[1750155240855,1.17101592,106150.0,106140.0,0.0035789]
[1750155241087,1.48260059,106150.0,106140.0,0.0035789]
[1750155241315,1.17901592,106150.0,106140.0,0.0035789]
[1750155242416,0.94594614,106150.0,106140.0,0.0035789]
[1750155242627,1.10214614,106150.0,106140.0,0.0035789]
[1750155242832,0.71159019,106150.0,106140.0,0.0035789]
[1750155243055,1.04718438,106150.0,106140.0,0.0035789]
[1750155243504,0.84970438,106150.0,106140.0,0.0035789]
[1750155243782,1.04718438,106150.0,106140.0,0.0035789]
[1750155245708,0.27534843,106150.0,106140.0,0.0035789]
[1750155245909,0.24705343,106150.0,106140.0,0.0035789]
[1750155246113,0.48140938,106150.0,106140.0,0.0035789]
[1750155246383,0.82140938,106150.0,106140.0,0.0035789]
[1750155247006,1.15200709,106150.0,106140.0,0.0035789]
[1750155247212,0.91765114,106150.0,106140.0,0.0035789]
[1750155250951,0.68329519,106150.0,106140.0,0.0035789]
[1750155251159,0.91765114,106150.0,106140.0,0.0035789]
[1750155252726,1.07385114,106150.0,106140.0,0.0035789]
[1750155252939,0.91765114,106150.0,106140.0,0.0035789]
[1750155253139,1.07385114,106150.0,106140.0,0.0035789]
[1750155253754,1.10214814,106150.0,106140.0,0.0035789]
[1750155256749,0.81279043,106150.0,106140.0,0.0035789]
[1750155256954,1.04714638,106150.0,106140.0,0.0035789]
[1750155257825,0.84970638,106150.0,106140.0,0.0035789]
[1750155258060,0.64059043,106150.0,106140.0,0.1535789]
[1750155258276,0.87494638,106150.0,106140.0,0.1535789]
[1750155260227,0.89054638,106150.0,106140.0,0.1535789]
[1750155265473,0.86224938,106150.0,106140.0,0.1535789]
[1750155270318,0.84664938,106150.0,106140.0,0.1535789]
[1750155270546,0.50664938,106150.0,106140.0,0.1535789]
[1750155271262,0.52234938,106150.0,106140.0,0.1535789]
[1750155272549,0.50664938,106150.0,106140.0,0.1535789]
[1750155273051,0.25649343,106150.0,106140.0,0.1535789]
[1750155273516,0.49084938,106150.0,106140.0,0.1535789]
[1750155274175,0.25649343,106150.0,106140.0,0.1700789]
[1750155274389,0.21525343,106150.0,106140.0,0.1700789]
[1750155274796,0.21525343,106150.0,106140.0,0.1535789]
[1750155275419,0.44960938,106150.0,106140.0,0.1535789]
[1750155275844,0.46590938,106150.0,106140.0,0.1535789]
[1750155276452,0.23155343,106150.0,106140.0,0.1535789]
[1750155276657,0.46590938,106150.0,106140.0,0.1535789]
[1750155277802,0.48240938,106150.0,106140.0,0.1535789]
[1750155278887,0.24805343,106150.0,106140.0,0.1535789]
[1750155279132,0.48240938,106150.0,106140.0,0.1535789]
[1750155280265,0.24805343,106150.0,106140.0,0.1535789]
[1750155280511,0.48240938,106150.0,106140.0,0.1535789]
[1750155286795,0.24805343,106150.0,106140.0,0.1535789]
[1750155287021,0.48240938,106150.0,106140.0,0.1535789]
[1750155290648,0.24805343,106150.0,106140.0,0.1535789]
[1750155290857,0.48240938,106150.0,106140.0,0.1535789]
[1750155293426,0.21525343,106150.0,106140.0,0.1535789]
[1750155293647,0.02684045,106150.0,106140.0,0.72404956]
[1750155293891,0.03626099,106150.0,106140.0,0.73347054]
[1750155294103,0.22467361,106150.0,106140.0,0.73347054]
[1750155294346,0.22167361,106150.0,106140.0,0.74289143]
[1750155294559,0.03326099,106150.0,106140.0,0.74289143]
[1750155294772,0.03526099,106150.0,106140.0,0.74289143]
[1750155294993,0.03526099,106150.0,106140.0,0.50853548]
[1750155295201,0.03026099,106150.0,106140.0,0.50853548]
[1750155295408,0.03326099,106150.0,106140.0,0.50853548]
[1750155295628,0.23109424,106150.0,106140.0,0.48969361]
[1750155296055,0.22067415,106150.0,106140.0,0.48969379]
[1750155296278,0.21125379,106150.0,106140.0,0.48027245]
[1750155296964,0.20183325,106150.0,106140.0,0.26592066]
[1750155297202,0.20183325,106150.0,106140.0,0.24982066]
[1750155298958,0.4676892,106150.0,106140.0,0.24982066]
[1750155299174,0.4676892,106150.0,106140.0,0.1535789]
[1750155300310,0.4676892,106150.0,106140.0,0.0035789]
[1750155301218,1.29436691,106150.0,106140.0,0.0035789]
[1750155301447,1.78766691,106150.0,106140.0,0.0035789]
[1750155301675,1.55331096,106150.0,106140.0,0.0035789]
[1750155301892,1.78766691,106150.0,106140.0,0.0035789]
[1750155302577,1.55331096,106150.0,106140.0,0.0035789]
[1750155302788,1.59451096,106150.0,106140.0,0.0035789]
[1750155303009,1.3009892,106150.0,106140.0,0.0035789]
[1750155303234,1.4982692,106150.0,106140.0,0.0035789]
[1750155307075,1.3009892,106150.0,106140.0,0.0035789]
[1750155307300,1.3421892,106150.0,106140.0,0.0035789]
[1750155307525,1.4982692,106150.0,106140.0,0.0035789]
[1750155308014,1.3421892,106150.0,106140.0,0.0035789]
[1750155308227,1.4982692,106150.0,106140.0,0.0035789]
[1750155308676,1.10783325,106150.0,106140.0,0.0035789]
[1750155308892,1.4982692,106150.0,106140.0,0.0035789]
[1750155310864,1.3292852,106150.0,106140.0,0.0035789]
[1750155311305,1.5100652,106150.0,106140.0,0.0035789]
[1750155311756,1.07842925,106150.0,106140.0,0.34200927]
[1750155312046,1.07842925,106150.0,106140.0,0.1535789]
[1750155312047,1.26066925,106150.0,106140.0,0.1535789]
[1750155312264,1.48560457,106150.0,106140.0,0.34200927]
[1750155312476,1.22295262,106150.0,106140.0,0.34200927]
[1750155312688,1.45730857,106150.0,106140.0,0.1535789]
[1750155312913,1.47290857,106150.0,106140.0,0.1535789]
[1750155313135,1.48810857,106150.0,106140.0,0.1535789]
[1750155313807,1.26006857,106150.0,106140.0,0.1535789]
[1750155314029,1.22295262,106150.0,106140.0,0.1695789]
[1750155314477,1.45730857,106150.0,106140.0,0.1695789]
[1750155314700,1.45730857,106150.0,106140.0,0.36743078]
[1750155314925,1.45730857,106150.0,106140.0,0.3768522]
[1750155315355,1.45730857,106150.0,106140.0,0.1535789]
[1750155315569,1.26006857,106150.0,106140.0,0.1535789]
[1750155315800,1.45730857,106150.0,106140.0,0.1535789]
[1750155316021,1.48860857,106150.0,106140.0,0.1535789]
[1750155316250,0.99530857,106150.0,106140.0,0.1535789]
[1750155316468,0.76095262,106150.0,106140.0,0.1535789]
[1750155316688,0.99530857,106150.0,106140.0,0.1535789]
[1750155322960,0.97930857,106150.0,106140.0,0.1535789]
[1750155323178,0.96400857,106150.0,106140.0,0.1535789]
[1750155325173,0.72965262,106150.0,106140.0,0.1535789]
[1750155325392,0.62396857,106150.0,106140.0,0.1535789]
[1750155325815,0.42676857,106150.0,106140.0,0.1535789]
[1750155326029,0.38957262,106150.0,106140.0,0.1535789]
[1750155327343,0.19241262,106150.0,106140.0,0.1535789]
[1750155327528,0.38957262,106150.0,106140.0,0.1535789]
[1750155328000,0.38957262,106150.0,106140.0,0.1697587]
[1750155328215,0.38957262,106150.0,106140.0,0.1535789]
[1750155328427,0.19241262,106150.0,106140.0,0.35750927]
[1750155328658,0.38957262,106150.0,106140.0,0.3763522]
[1750155329361,0.38957262,106150.0,106140.0,0.38577354]
[1750155329553,0.38957262,106150.0,106140.0,0.3951947]
[1750155330426,0.004,106150.0,106140.0,1.21529797]
[1750155330648,0.004,106150.0,106140.0,1.42983882]
[1750155330862,0.004,106150.0,106140.0,1.12125415]
[1750155331968,0.03767709,106160.0,106150.0,0.24767343]
[1750155332180,0.03767709,106160.0,106150.0,0.34391519]
[1750155332635,0.04709674,106160.0,106150.0,0.34391519]
[1750155332863,0.03767709,106160.0,106150.0,0.34391519]
[1750155333296,0.02925753,106160.0,106150.0,0.34391519]
[1750155333504,0.03867709,106160.0,106150.0,0.34391519]
[1750155334307,0.02925744,106160.0,106150.0,0.34391519]
[1750155334482,0.02925736,106160.0,106150.0,0.34391519]
[1750155334892,0.03867683,106160.0,106150.0,0.34391519]
[1750155335747,0.2270717,106160.0,106150.0,0.34391519]
[1750155335984,0.03867683,106160.0,106150.0,0.34391519]
[1750155336640,0.02925736,106160.0,106150.0,0.34391519]
[1750155336862,0.01041894,106160.0,106150.0,0.34391519]
[1750155337552,0.01041894,106160.0,106150.0,0.57827114]
[1750155337782,0.01983815,106160.0,106150.0,0.57827114]
[1750155337992,0.01983815,106160.0,106150.0,0.58756763]
[1750155338200,0.01041894,106160.0,106150.0,0.58756763]
[1750155338419,0.001,106160.0,106150.0,0.58756763]
[1750155338876,0.01041894,106160.0,106150.0,0.58756763]
[1750155339096,0.001,106160.0,106150.0,0.58756763]
[1750155339438,0.01041903,106160.0,106150.0,0.58756763]
[1750155340295,0.01983824,106160.0,106150.0,0.58756763]
[1750155340510,0.0386771,106160.0,106150.0,0.49983519]
[1750155340716,0.03867701,106160.0,106150.0,0.49983519]
[1750155341128,0.03867701,106160.0,106150.0,0.50911304]
[1750155341537,0.0386771,106160.0,106150.0,0.50911304]
[1750155341756,0.02925754,106160.0,106150.0,0.49983519]
[1750155341965,0.03867701,106160.0,106150.0,0.49983519]
[1750155342577,0.001,106160.0,106150.0,1.16296071]
[1750155343026,0.001,106160.0,106150.0,1.00704071]
[1750155343245,0.001,106160.0,106150.0,1.16296071]
[1750155343915,7.27e-06,106170.0,106160.0,0.56665302]
[1750155344127,7.27e-06,106170.0,106160.0,0.94389158]
[1750155345628,7.27e-06,106170.0,106160.0,0.94589158]
[1750155346051,7.27e-06,106170.0,106160.0,0.71153563]
[1750155346267,7.27e-06,106170.0,106160.0,0.46489478]
[1750155346480,0.0094255,106170.0,106160.0,0.62077478]
[1750155346699,0.0094255,106170.0,106160.0,0.62277478]
[1750155346913,0.23832113,106170.0,106160.0,0.44805628]
[1750155347120,0.23832113,106170.0,106160.0,0.45747584]
[1750155347121,0.25715857,106170.0,106160.0,0.45747584]
[1750155347328,0.05936259,106170.0,106160.0,0.63219434]
[1750155347773,0.049944,106170.0,106160.0,0.63219434]
[1750155347991,0.06878144,106170.0,106160.0,0.63219452]
[1750155348215,0.25715848,106170.0,106160.0,0.63219452]
[1750155348428,0.25715848,106170.0,106160.0,0.48219452]
[1750155348640,0.25715848,106170.0,106160.0,0.63219452]
[1750155348850,0.06878135,106170.0,106160.0,0.64161373]
[1750155349072,0.06878135,106170.0,106160.0,0.49161373]
[1750155349286,0.26657733,106170.0,106160.0,0.64161373]
[1750155349598,0.26657733,106170.0,106160.0,0.49161373]
[1750155349823,0.26657733,106170.0,106160.0,0.64161373]
[1750155350026,0.2571591,106170.0,106160.0,0.46689522]
[1750155350225,0.2571591,106170.0,106160.0,0.62277522]
[1750155350884,0.2477406,106170.0,106160.0,0.46689522]
[1750155351087,0.2477406,106170.0,106160.0,0.62277522]
[1750155351512,0.05936347,106170.0,106160.0,0.63219452]
[1750155351710,0.04994462,106170.0,106160.0,0.64161373]
[1750155351934,0.04994418,106170.0,106160.0,0.64161373]
[1750155352144,0.05936294,106170.0,106160.0,0.62277487]
[1750155352347,0.24774007,106170.0,106160.0,0.45747557]
[1750155352602,0.05936294,106170.0,106160.0,0.63219408]
[1750155352833,0.05936294,106170.0,106160.0,0.61331549]
[1750155353995,0.24774007,106170.0,106160.0,0.61331557]
[1750155354448,0.25715892,106170.0,106160.0,0.61331557]
[1750155354901,0.05936294,106170.0,106160.0,0.62273487]
[1750155355128,0.05936294,106170.0,106160.0,0.63215408]
[1750155355382,0.05936285,106170.0,106160.0,0.6415732]
[1750155355574,0.04052532,106170.0,106160.0,0.6415732]
[1750155355814,0.00942532,106170.0,106160.0,0.6415732]
[1750155356275,7.27e-06,106170.0,106160.0,0.6415732]
[1750155356742,7.27e-06,106170.0,106160.0,0.90762915]
[1750155356975,7.27e-06,106170.0,106160.0,1.10762915]
[1750155358363,7.27e-06,106170.0,106160.0,1.12217]
[1750155364662,7.27e-06,106170.0,106160.0,1.46217]
[1750155366661,7.27e-06,106170.0,106160.0,1.73760595]
[1750155366894,0.04933105,106200.0,106190.0,0.36659182]
[1750155367145,0.06820995,106200.0,106190.0,0.61859358]
[1750155367352,0.06820978,106200.0,106190.0,0.61859358]
[1750155367547,0.04937837,106200.0,106190.0,0.61859358]
[1750155367698,0.04937837,106200.0,106190.0,0.63477338]
[1750155367905,0.05879403,106200.0,106190.0,0.61859358]
[1750155368529,0.03054732,106200.0,106190.0,0.61859358]
[1750155368734,0.04196289,106200.0,106190.0,0.61859358]
[1750155369146,0.01724732,106200.0,106190.0,0.61859358]
[1750155369355,0.03634732,106200.0,106190.0,0.61859358]
[1750155369569,0.03634732,106200.0,106190.0,0.85294953]
[1750155369981,0.02024732,106200.0,106190.0,0.85294953]
[1750155370195,0.00504732,106200.0,106190.0,0.85294953]
[1750155371469,0.00304732,106200.0,106190.0,0.85294953]
[1750155371669,0.00304732,106200.0,106190.0,0.86912933]
[1750155371883,4.732e-05,106200.0,106190.0,0.85294953]
[1750155372093,4.732e-05,106200.0,106190.0,0.86854953]
[1750155372284,0.00104732,106200.0,106190.0,0.61859358]
[1750155372489,0.00104732,106200.0,106190.0,0.62817518]
[1750155373148,0.01694732,106200.0,106190.0,0.62817518]
[1750155373346,0.03224732,106200.0,106190.0,0.62817518]
[1750155373818,0.00104732,106200.0,106190.0,0.86253113]
[1750155374040,0.00104732,106200.0,106190.0,0.62817518]
[1750155374254,0.00104732,106200.0,106190.0,0.86253113]
[1750155375472,0.00104732,106200.0,106190.0,0.48695603]
[1750155375703,0.00104732,106200.0,106190.0,0.89263198]
[1750155376096,0.00104732,106200.0,106190.0,0.90853198]
[1750155377847,0.00104732,106200.0,106190.0,0.91053198]
[1750155378056,4.732e-05,106200.0,106190.0,0.91053198]
[1750155378267,4.732e-05,106200.0,106190.0,0.89463198]
[1750155378486,4.732e-05,106200.0,106190.0,0.89663198]
[1750155379951,4.732e-05,106200.0,106190.0,0.91303198]
[1750155380754,4.732e-05,106200.0,106190.0,0.49095603]
[1750155380977,0.03154732,106200.0,106190.0,0.64663603]
[1750155381176,0.03154732,106200.0,106190.0,0.49663603]
[1750155381347,0.03154732,106200.0,106190.0,0.64663603]
[1750155381972,0.03154732,106200.0,106190.0,0.48705443]
[1750155382189,0.04096271,106200.0,106190.0,0.48705443]
[1750155382403,0.04096271,106200.0,106190.0,0.46683358]
[1750155382601,0.05037828,106200.0,106190.0,0.62251358]
[1750155383059,0.06921075,106200.0,106190.0,0.61309712]
[1750155383261,0.25753466,106200.0,106190.0,0.62251358]
[1750155383711,0.47305947,106200.0,106190.0,0.25024176]
[1750155383912,0.47305947,106200.0,106190.0,0.1701798]
[1750155384153,0.47305947,106200.0,106190.0,0.004]
[1750155384860,0.23927483,106190.0,106180.0,0.52227625]
[1750155385060,0.24869138,106190.0,106180.0,0.62793544]
[1750155385701,0.2392751,106190.0,106180.0,0.60910049]
[1750155385910,0.2392751,106190.0,106180.0,0.45342049]
[1750155386127,0.22985855,106190.0,106180.0,0.60910049]
[1750155386293,0.22985855,106190.0,106180.0,0.61110049]
[1750155387104,0.22985855,106190.0,106180.0,0.62251801]
[1750155387308,0.22985855,106190.0,106180.0,0.63193544]
[1750155387516,0.4642145,106190.0,106180.0,0.154]
[1750155387712,0.4642145,106190.0,106180.0,0.15964]
[1750155388947,0.4642145,106190.0,106180.0,0.004]
[1750155389355,0.5051745,106190.0,106180.0,0.004]
[1750155389725,0.8451745,106190.0,106180.0,0.004]
[1750155389954,0.8734585,106190.0,106180.0,0.004]
[1750155390377,1.0008145,106190.0,106180.0,0.002]
[1750155390586,1.0290975,106190.0,106180.0,0.002]
[1750155390812,0.23047717,106180.0,106170.0,0.15]
[1750155391368,0.46483312,106180.0,106170.0,0.15]
[1750155392614,0.23047717,106180.0,106170.0,0.15]
[1750155393590,0.23047717,106180.0,106170.0,0.151]
[1750155396585,0.46483312,106180.0,106170.0,0.151]
[1750155397523,0.23047717,106180.0,106170.0,0.151]
[1750155397970,0.46483312,106180.0,106170.0,0.151]
[1750155399858,0.46483312,106180.0,106170.0,0.15]
[1750155400111,0.23215302,106160.0,106150.0,0.35347156]
[1750155400230,0.24725302,106160.0,106150.0,0.60913377]
[1750155400439,0.24725302,106160.0,106150.0,0.45913377]
[1750155400649,0.2378339,106160.0,106150.0,0.45913377]
[1750155400858,0.22841452,106160.0,106150.0,0.15]
[1750155401090,0.22841452,106160.0,106150.0,0.30564]
[1750155401313,0.22841452,106160.0,106150.0,0.30611315]
[1750155401527,0.22841452,106160.0,106150.0,0.30811315]
[1750155401728,0.22841452,106160.0,106150.0,0.31011315]
[1750155402161,0.22841452,106160.0,106150.0,0.15447315]
[1750155402390,0.22841452,106160.0,106150.0,0.31011315]
[1750155402638,0.22841452,106160.0,106150.0,0.15447315]
[1750155403507,0.46277047,106160.0,106150.0,0.00447315]
[1750155403974,0.50377047,106160.0,106150.0,0.00447315]
[1750155404205,0.65941047,106160.0,106150.0,0.00447315]
[1750155404660,0.65941047,106160.0,106150.0,0.00247315]
[1750155404888,0.66041047,106160.0,106150.0,0.00047315]
[1750155406731,0.65941047,106160.0,106150.0,0.00047315]
[1750155406969,0.66241047,106160.0,106150.0,0.00047315]
[1750155407179,1.00441047,106160.0,106150.0,0.00047315]
[1750155407397,1.12894623,106160.0,106150.0,0.00047315]
[1750155409597,0.83606447,106160.0,106150.0,0.00047315]
[1750155409808,0.57341452,106160.0,106150.0,0.00047315]
[1750155410641,0.80777047,106160.0,106150.0,0.00047315]
[1750155413400,0.90401223,106160.0,106150.0,0.00047315]
[1750155415291,1.39731223,106160.0,106150.0,0.00047315]
[1750155417828,1.16295628,106160.0,106150.0,0.00047315]
[1750155418034,1.39731223,106160.0,106150.0,0.00047315]
[1750155418252,1.42560623,106160.0,106150.0,0.00047315]
[1750155420879,1.67735545,106160.0,106150.0,0.00047315]
[1750155421094,1.42560623,106160.0,106150.0,0.00047315]
[1750155421343,1.58120623,106160.0,106150.0,0.00047315]
[1750155421543,1.42560623,106160.0,106150.0,0.00047315]
[1750155421768,1.29152852,106160.0,106150.0,0.00047315]
[1750155422427,1.03258447,106160.0,106150.0,0.00047315]
[1750155422645,1.00429047,106160.0,106150.0,0.00047315]
[1750155422858,1.03258247,106160.0,106150.0,0.00047315]
[1750155423300,0.83606247,106160.0,106150.0,0.00047315]
[1750155423512,0.76993452,106160.0,106150.0,0.00047315]
[1750155423728,0.57341452,106160.0,106150.0,0.00047315]
[1750155424165,0.76993452,106160.0,106150.0,0.00047315]
[1750155424608,1.00429047,106160.0,106150.0,0.00047315]
[1750155425061,0.76993452,106160.0,106150.0,0.00047315]
[1750155425280,1.00429047,106160.0,106150.0,0.00047315]
[1750155431106,1.12296691,106160.0,106150.0,0.00047315]
[1750155432915,1.15126091,106160.0,106150.0,0.00047315]
[1750155433132,1.64456091,106160.0,106150.0,0.00047315]
[1750155433558,1.41020496,106160.0,106150.0,0.00047315]
[1750155433762,1.64456091,106160.0,106150.0,0.00047315]
[1750155434656,1.64457069,106160.0,106150.0,0.00047315]
[1750155435526,1.62240623,106160.0,106150.0,0.00047315]
[1750155435769,1.64485232,106160.0,106150.0,0.00047315]
[1750155435989,1.62240623,106160.0,106150.0,0.00047315]
[1750155440581,1.62236623,106160.0,106150.0,0.00047315]
[1750155440997,1.62232623,106160.0,106150.0,0.00047315]
[1750155441212,1.10500852,106160.0,106150.0,0.00047315]
[1750155441685,1.24287452,106160.0,106150.0,0.00047315]
[1750155442316,1.25877452,106160.0,106150.0,0.00047315]
[1750155443412,1.24287452,106160.0,106150.0,0.00047315]
[1750155443624,1.24299452,106160.0,106150.0,0.00047315]
[1750155444248,1.28047047,106160.0,106150.0,0.00047315]
[1750155444672,1.47735047,106160.0,106150.0,0.00047315]
[1750155445093,1.49325047,106160.0,106150.0,0.00047315]
[1750155446088,1.50895047,106160.0,106150.0,0.00047315]
[1750155447094,1.27459452,106160.0,106150.0,0.00047315]
[1750155447295,1.50895047,106160.0,106150.0,0.00047315]
[1750155447496,1.49325047,106160.0,106150.0,0.00047315]
[1750155447699,1.04611452,106160.0,106150.0,0.00047315]
[1750155447898,1.24287452,106160.0,106150.0,0.00047315]
[1750155448107,1.04611452,106160.0,106150.0,0.16707315]
[1750155448307,1.04611452,106160.0,106150.0,0.18307315]
[1750155448506,1.04611452,106160.0,106150.0,0.15047315]
[1750155448713,1.28047047,106160.0,106150.0,0.15047315]
[1750155449743,1.04611452,106160.0,106150.0,0.15047315]
[1750155449973,1.28047047,106160.0,106150.0,0.15047315]
[1750155451999,0.19783325,106150.0,106140.0,0.2717146]
[1750155452239,0.20725361,106150.0,106140.0,0.3491144]
[1750155452666,0.20725361,106150.0,106140.0,0.33969324]
[1750155453311,0.20725361,106150.0,106140.0,0.3491144]
[1750155453975,0.20725361,106150.0,106140.0,0.35853547]
[1750155454202,0.20825361,106150.0,106140.0,0.35853547]
[1750155454411,0.03868055,106150.0,106140.0,0.75231195]
[1750155455297,0.03868055,106150.0,106140.0,0.673676]
[1750155455298,0.001,106150.0,106140.0,0.673676]
[1750155455516,0.02926046,106150.0,106140.0,0.90803195]
[1750155455721,0.0198401,106150.0,106140.0,0.90803195]
[1750155455933,0.0198401,106150.0,106140.0,0.92421175]
[1750155456141,0.02926046,106150.0,106140.0,0.90803195]
[1750155456363,0.22709353,106150.0,106140.0,0.90803195]
[1750155456581,0.23651407,106150.0,106140.0,0.75231195]
[1750155456860,0.04810145,106150.0,106140.0,0.90799195]
[1750155457056,0.04810145,106150.0,106140.0,0.90823195]
[1750155457497,0.04810145,106150.0,106140.0,0.89881106]
[1750155457727,0.23651478,106150.0,106140.0,0.90823195]
[1750155457937,0.02926099,106150.0,106140.0,0.90823195]
[1750155458188,0.22709424,106150.0,106140.0,0.673876]
[1750155458403,0.03868162,106150.0,106140.0,0.90823195]
[1750155458841,0.22709424,106150.0,106140.0,0.90823195]
[1750155459058,0.02926099,106150.0,106140.0,0.90823195]
[1750155459484,0.02926099,106150.0,106140.0,0.75231195]
[1750155459702,0.02926099,106150.0,106140.0,0.9174316]
[1750155459924,0.03868153,106150.0,106140.0,0.90819195]
[1750155460134,0.03868153,106150.0,106140.0,0.90811195]
[1750155460338,0.02926099,106150.0,106140.0,0.75231195]
[1750155460539,0.02926099,106150.0,106140.0,0.90811195]
[1750155460759,0.22709424,106150.0,106140.0,0.74289106]
[1750155460985,0.45880965,106150.0,106140.0,0.24982066]
[1750155461208,0.47530965,106150.0,106140.0,0.1535789]
[1750155461427,0.48530965,106150.0,106140.0,0.1535789]
[1750155462329,0.2509537,106150.0,106140.0,0.1535789]
[1750155472912,0.2509537,106150.0,106140.0,0.34200927]
[1750155473140,0.2509537,106150.0,106140.0,0.36085212]
[1750155473354,0.21825325,106150.0,106140.0,0.37027328]
[1750155474647,0.20883307,106150.0,106140.0,0.36085212]
[1750155474851,0.20883307,106150.0,106140.0,0.37027337]
[1750155475366,0.20883307,106150.0,106140.0,0.52587337]
[1750155475579,0.20883307,106150.0,106140.0,0.55727337]
[1750155475811,0.20883307,106150.0,106140.0,0.54087337]
[1750155476911,0.19941262,106150.0,106140.0,0.51645212]
[1750155477591,0.19941262,106150.0,106140.0,0.52587337]
[1750155477830,0.19941262,106150.0,106140.0,0.54137337]
[1750155478964,0.23131262,106150.0,106140.0,0.1535789]
[1750155479201,0.23131262,106150.0,106140.0,0.3091789]
[1750155479435,0.46566857,106150.0,106140.0,0.1535789]
[1750155480622,0.80566857,106150.0,106140.0,0.1535789]
[1750155481095,0.96154857,106150.0,106140.0,0.1535789]
[1750155483692,0.96154857,106150.0,106140.0,0.0035789]
[1750155484583,0.57131262,106150.0,106140.0,0.0035789]
[1750155484806,0.80566857,106150.0,106140.0,0.0035789]
[1750155485012,1.00230857,106150.0,106140.0,0.0035789]
[1750155485912,0.76803262,106150.0,106140.0,0.0035789]
[1750155486560,0.57131262,106150.0,106140.0,0.0035789]
[1750155486770,0.76815262,106150.0,106140.0,0.0035789]
[1750155486977,1.00250857,106150.0,106140.0,0.0035789]
[1750155487194,1.00258857,106150.0,106140.0,0.0035789]
[1750155487684,0.80566857,106150.0,106140.0,0.0035789]
[1750155487909,1.00258857,106150.0,106140.0,0.0035789]
[1750155491575,0.80566857,106150.0,106140.0,0.0035789]
[1750155491779,1.00246857,106150.0,106140.0,0.0035789]
[1750155495783,0.57131262,106150.0,106140.0,0.0035789]
[1750155496028,1.00222857,106150.0,106140.0,0.0035789]
[1750155496276,0.98632857,106150.0,106140.0,0.0035789]
[1750155496524,0.58033262,106150.0,106140.0,0.0035789]
[1750155497297,0.59653262,106150.0,106140.0,0.0035789]
[1750155498027,0.84698857,106150.0,106140.0,0.0035789]
[1750155500208,0.59653262,106150.0,106140.0,0.0035789]
[1750155501550,0.24033262,106150.0,106140.0,0.0189789]
[1750155501766,0.24033262,106150.0,106140.0,0.0035789]
[1750155503032,0.24033262,106150.0,106140.0,0.58578656]
[1750155503251,0.24033262,106150.0,106140.0,0.69742832]
[1750155503469,0.24033262,106150.0,106140.0,0.46307237]
[1750155503940,0.24033262,106150.0,106140.0,0.47249362]
[1750155504149,0.24033262,106150.0,106140.0,0.48191478]
[1750155504626,0.24975307,106150.0,106140.0,0.48191478]
[1750155504845,0.26859388,106150.0,106140.0,0.49133585]
[1750155505506,0.26859388,106150.0,106140.0,0.48191478]
[1750155505718,0.24975325,106150.0,106140.0,0.43825103]
[1750155506594,0.24975325,106150.0,106140.0,0.44767254]
[1750155507352,0.24975325,106150.0,106140.0,0.45709388]
[1750155508029,0.24975325,106150.0,106140.0,0.46651513]
[1750155508646,0.24975325,106150.0,106140.0,0.50085736]
[1750155509293,0.25917361,106150.0,106140.0,0.50085736]
[1750155509506,0.25917361,106150.0,106140.0,0.51725683]
[1750155509723,0.25917361,106150.0,106140.0,0.66347585]
[1750155509929,0.26859352,106150.0,106140.0,0.67289674]
[1750155510173,0.0392609,106150.0,106140.0,0.67289674]
[1750155510403,0.23709406,106150.0,106140.0,0.67289674]
[1750155510897,0.04868144,106150.0,106140.0,0.67289674]
[1750155511167,0.02984045,106150.0,106140.0,0.67289674]
[1750155511430,0.23709415,106150.0,106140.0,0.67289674]
[1750155511871,0.23709415,106150.0,106140.0,0.24982066]
[1750155511872,0.2182537,106150.0,106140.0,0.24982066]
[1750155512111,0.2492537,106150.0,106140.0,0.09982066]
[1750155512378,0.48360965,106150.0,106140.0,0.0035789]
[1750155513298,0.2492537,106150.0,106140.0,0.0035789]
[1750155513514,0.48360965,106150.0,106140.0,0.0035789]
[1750155516158,0.2492537,106150.0,106140.0,0.0035789]
[1750155518350,0.48360965,106150.0,106140.0,0.0035789]
[1750155518775,0.2492537,106150.0,106140.0,0.0035789]
[1750155522742,0.48360965,106150.0,106140.0,0.0035789]
[1750155525988,0.57151745,106150.0,106140.0,0.0035789]
[1750155526220,0.48360965,106150.0,106140.0,0.0035789]
[1750155534505,0.5892537,106150.0,106140.0,0.0035789]
[1750155534740,0.82360965,106150.0,106140.0,0.0035789]
[1750155535634,0.5892537,106150.0,106140.0,0.0035789]
[1750155535852,0.82360965,106150.0,106140.0,0.0035789]
[1750155536088,1.02108965,106150.0,106140.0,0.0035789]
[1750155536311,0.7867337,106150.0,106140.0,0.0035789]
[1750155536537,1.02108965,106150.0,106140.0,0.0035789]
[1750155537185,1.02152965,106150.0,106140.0,0.0035789]
[1750155537407,0.82360965,106150.0,106140.0,0.0035789]
[1750155537623,1.02152965,106150.0,106140.0,0.0035789]
[1750155537838,0.82360965,106150.0,106140.0,0.0035789]
[1750155538058,1.02152965,106150.0,106140.0,0.0035789]
[1750155538551,0.82360965,106150.0,106140.0,0.0035789]
[1750155538771,0.7872937,106150.0,106140.0,0.0035789]
[1750155538989,1.02164965,106150.0,106140.0,0.0035789]
[1750155539208,0.5892537,106150.0,106140.0,0.0035789]
[1750155539467,1.02180965,106150.0,106140.0,0.0035789]
[1750155539690,0.82360965,106150.0,106140.0,0.0035789]
[1750155539930,1.02180965,106150.0,106140.0,0.0035789]
[1750155540374,1.02184965,106150.0,106140.0,0.0035789]
[1750155540609,0.80810965,106150.0,106140.0,0.0035789]
[1750155540834,1.00630965,106150.0,106140.0,0.0035789]
[1750155541082,0.7719537,106150.0,106140.0,0.0035789]
[1750155541967,1.00630965,106150.0,106140.0,0.0035789]
[1750155542629,0.5737537,106150.0,106140.0,0.0035789]
[1750155542863,1.00630965,106150.0,106140.0,0.0035789]
[1750155543086,0.99076965,106150.0,106140.0,0.0035789]
[1750155543577,1.02196965,106150.0,106140.0,0.0035789]
[1750155544017,0.5735537,106150.0,106140.0,0.0035789]
[1750155544231,0.83392965,106150.0,106140.0,0.0035789]
[1750155544442,0.5995737,106150.0,106140.0,0.0035789]
[1750155544668,0.86542965,106150.0,106140.0,0.0035789]
[1750155545329,0.6310737,106150.0,106140.0,0.0035789]
[1750155545544,0.86542965,106150.0,106140.0,0.0035789]
[1750155546884,0.84962965,106150.0,106140.0,0.0035789]
[1750155547337,0.83392965,106150.0,106140.0,0.0035789]
[1750155548209,0.5582537,106150.0,106140.0,0.0035789]
[1750155548417,0.5995737,106150.0,106140.0,0.0035789]
[1750155549287,0.21825307,106150.0,106140.0,0.48749379]
[1750155549504,0.21825343,106150.0,106140.0,0.47807254]
[1750155549736,0.21825343,106150.0,106140.0,0.28964217]
[1750155549968,0.21825343,106150.0,106140.0,0.47807254]
[1750155550425,0.20883316,106150.0,106140.0,0.28022066]
[1750155550649,0.44318911,106150.0,106140.0,0.26482066]
[1750155550860,0.44318911,106150.0,106140.0,0.1535789]
[1750155553446,0.20883316,106150.0,106140.0,0.1535789]
[1750155554314,0.20883316,106150.0,106140.0,0.34200927]
[1750155554534,0.20883316,106150.0,106140.0,0.35850927]
[1750155554976,0.20883316,106150.0,106140.0,0.48077237]
[1750155555193,0.20883316,106150.0,106140.0,0.49019362]